fUSD/lending_fUSD_20240220
["ID","MTS","AMOUNT","RATE_DAILY","PERIOD"]
[314526690,1708405751307,-16498.97015016,0.0003,2]
[314526691,1708405751326,-1076.93640484,0.0003,4]
[314526692,1708405765105,-666.05930191,0.00029999,2]
[314526693,1708405765126,-2263.99919809,0.0003,4]
[314526694,1708405766110,-4175.24087601,0.0003,4]
[314526695,1708405774093,-286.12040089,0.00029998,2]
[314526696,1708405774113,-198.18731778,0.0003,4]
[314526697,1708405774132,-206.36815221,0.0003,4]
[314526698,1708405774152,-162.24708733,0.00030907,2]
[314526699,1708405774171,-900.0,0.00031,3]
[314526700,1708405774191,-739.6,0.00031529,2]
[314526701,1708405777162,436.54754554,0.00029997,2]
[314526702,1708405777587,8073.68121281,0.00030999,4]
[314526707,1708405831978,-155.0,0.00031908,4]
[314526708,1708405831988,-162.24708733,0.00031909,2]
[314526709,1708405831997,-472.32,0.00032257,2]
[314526710,1708405832007,-500.0,0.00032345,2]
[314526712,1708405832016,-197.99,0.00032345,2]
[314526713,1708405832026,-190.74693393,0.00032389,4]
[314526715,1708405832036,-586.5322109,0.0003239,2]
[314526716,1708405832046,-2794.12086262,0.0003239,4]
[314526718,1708405832066,-2857.45598635,0.0003239,4]
[314526719,1708405832075,-3952.9,0.00032391,2]
[314526720,1708405832084,-499.99,0.00032391,2]
[314526721,1708405832094,-484.63508584,0.00032391,90]
[314526722,1708405832252,-474.37904849,0.00032391,90]
[314526723,1708405832263,-1026.39824093,0.00032391,90]
[314526724,1708405832311,-484.55762474,0.00032391,90]
[314526725,1708405832321,-168.22689298,0.00032391,2]
[314526741,1708405838518,-5443.84310702,0.00032391,2]
[314526743,1708405838528,-159.95,0.00032455,2]
[314526745,1708405838537,-250.0,0.00032479,2]
[314526747,1708405838547,-150.0,0.00032479,2]
[314526749,1708405838585,-2183.02,0.00032497,2]
[314526751,1708405838594,-500.0,0.00032501,2]
[314526753,1708405838604,-1000.0,0.00032531,2]
[314526755,1708405838613,-23900.0,0.00032532,2]
[314526757,1708405838623,-158.55,0.00032537,10]
[314526759,1708405838633,-411.77,0.00032537,2]
[314526761,1708405838643,-250.0,0.00032755,2]
[314526763,1708405838652,-250.0,0.00032888,2]
[314526765,1708405838662,-162.24708733,0.00032911,2]
[314526767,1708405838671,-500.0,0.00032953,2]
[314526770,1708405838681,-1269.08202052,0.00033,2]
[314526772,1708405838691,-950.0,0.00033,3]
[314526774,1708405838700,-159.0,0.00033,2]
[314526776,1708405838710,-220.42,0.0003304,2]
[314526778,1708405838719,-2392.26,0.00033045,2]
[314526780,1708405838729,-1219.01,0.00033063,2]
[314526782,1708405838739,-150.0,0.00033107,2]
[314526784,1708405838748,-1702.91,0.00033191,2]
[314526786,1708405838757,-1481.33,0.00033254,2]
[314526788,1708405838768,-1080.96,0.00033256,2]
[314526790,1708405838777,-464.46,0.0003327,2]
[314526792,1708405838787,-2000.0,0.00033283,2]
[314526794,1708405838796,-158.05,0.00033285,2]
[314526796,1708405838806,-179.02,0.00033481,2]
[314526798,1708405838815,-179.49,0.00033494,2]
[314526800,1708405838825,-158.55,0.000336,10]
[314526802,1708405838834,-739.6,0.00033793,2]
[314526804,1708405838844,-150.0,0.00033837,2]
[314526806,1708405838854,-162.24708733,0.00033912,2]
[314526808,1708405838865,-162.32,0.00034042,2]
[314526810,1708405838875,-150.0,0.00034153,2]
[314526812,1708405838885,-527.68,0.00034229,2]
[314526814,1708405838895,-150.0,0.00034299,2]
[314526816,1708405838905,-150.0,0.0003432,2]
[314526818,1708405838915,-1528.0,0.00034335,2]
[314526820,1708405838925,-150.0,0.00034342,2]
[314526822,1708405838935,-150.0,0.00034353,2]
[314526825,1708405838950,-166.66,0.00034404,2]
[314526827,1708405838963,-150.0,0.00034409,2]
[314526829,1708405838973,-150.0,0.0003447,2]
[314526831,1708405838984,-150.0,0.00034505,2]
[314526833,1708405838995,-150.0,0.00034516,2]
[314526835,1708405839005,-2558.41,0.00034521,2]
[314526837,1708405839016,-150.0,0.00034553,2]
[314526840,1708405839027,-150.0,0.00034568,2]
[314526842,1708405839037,-191.21,0.00034596,120]
[314526844,1708405839049,-162.32,0.00034609,2]
[314526846,1708405839060,-150.0,0.00034655,2]
[314526848,1708405839070,-158.55,0.00034663,10]
[314526850,1708405839080,-150.0,0.00034692,2]
[314526852,1708405839090,-1219.01,0.00034707,2]
[314526854,1708405839100,-181.09708629,0.00034743,20]
[314526856,1708405839110,-177.58,0.00034743,2]
[314526859,1708405839120,-150.0,0.00034763,2]
[314526861,1708405839129,-150.0,0.00034765,2]
[314526863,1708405839139,-150.0,0.00034788,2]
[314526865,1708405839149,-150.0,0.00034804,2]
[314526866,1708405839158,-158.17,0.00034813,2]
[314526869,1708405839168,-150.0,0.00034846,2]
[314526871,1708405839177,-150.0,0.00034849,2]
[314526873,1708405839186,-162.24708733,0.00034914,2]
[314526875,1708405839196,-150.0,0.00034922,2]
[314526877,1708405839206,-150.0,0.00034949,2]
[314526879,1708405839216,-1000.0,0.00035,3]
[314526881,1708405839225,-150.0,0.00035018,2]
[314526883,1708405839235,-150.0,0.00035067,2]
[314526885,1708405839244,-150.0,0.00035085,2]
[314526887,1708405839254,-14472.0,0.000351,3]
[314526889,1708405839262,-150.0,0.000351,2]
[314526891,1708405839272,-150.0,0.0003512,2]
[314526893,1708405839282,-150.0,0.00035137,2]
[314526895,1708405839292,-150.0,0.00035141,2]
[314526897,1708405839301,-150.0,0.00035157,2]
[314526899,1708405839311,-162.32,0.00035177,2]
[314526901,1708405839320,-1500.0,0.00035194,2]
[314526903,1708405839330,-157.0212031,0.00035198,2]
[314526905,1708405839339,-150.0,0.00035238,2]
[314526907,1708405839349,-150.0,0.00035242,2]
[314526909,1708405839358,-150.0,0.00035258,2]
[314526912,1708405839369,-150.0,0.00035268,2]
[314526914,1708405839378,-177.58,0.00035291,2]
[314526916,1708405839388,-157.0212031,0.00035298,2]
[314526918,1708405839398,-150.0,0.0003535,2]
[314526920,1708405839408,-150.0,0.00035371,2]
[314526922,1708405839417,-157.0212031,0.00035398,2]
[314526924,1708405839427,-300.0,0.000354,5]
[314526926,1708405839436,-150.0,0.00035401,2]
[314526928,1708405839445,-150.0,0.00035428,2]
[314526930,1708405839455,-150.0,0.00035462,2]
[314526932,1708405839465,-150.0,0.00035489,2]
[314526934,1708405839475,-157.0212031,0.00035498,2]
[314526936,1708405839484,-150.0,0.000355,2]
[314526938,1708405839495,-150.0,0.00035501,2]
[314526940,1708405839504,-208.0,0.00035514,2]
[314526942,1708405839514,-150.0,0.00035519,2]
[314526944,1708405839524,-150.0,0.0003555,2]
[314526946,1708405839533,-2500.0,0.00035568,2]
[314526948,1708405839543,-11062.2,0.00035578,10]
[314526950,1708405839552,-7085.1,0.00035588,10]
[314526952,1708405839562,-157.0212031,0.00035598,2]
[314526954,1708405839571,-150.0,0.00035605,2]
[314526956,1708405839581,-150.0,0.00035612,2]
[314526958,1708405839591,-150.0,0.00035617,2]
[314526960,1708405839601,-217.64331968,0.00035642,7]
[314526962,1708405839610,-514.51811365,0.00035643,7]
[314526964,1708405839619,-295.03687107,0.00035643,7]
[314526966,1708405839629,-2231.06355988,0.00035644,2]
[314526969,1708405839644,-150.0,0.00035653,2]
[314526971,1708405839654,-150.0,0.00035668,2]
[314526973,1708405839665,-150.0,0.00035688,2]
[314526975,1708405839675,-157.0212031,0.00035698,2]
[314526977,1708405839685,-800.0,0.00035699,2]
[314526979,1708405839695,-159.95,0.00035701,2]
[314526982,1708405839705,-158.55,0.00035725,10]
[314526984,1708405839714,-150.0,0.00035734,2]
[314526986,1708405839723,-2343.98,0.00035741,2]
[314526988,1708405839733,-1165.67,0.00035741,2]
[314526990,1708405839742,-543.99,0.00035741,2]
[314526992,1708405839751,-649.17,0.00035741,2]
[314526994,1708405839761,-882.84,0.00035741,2]
[314526996,1708405839770,-911.74,0.00035741,2]
[314526998,1708405839780,-2167.09,0.00035741,2]
[314527000,1708405839789,-4210.64,0.00035741,2]
[314527002,1708405839799,-19216.17,0.00035741,2]
[314527004,1708405839808,-948.0,0.00035741,2]
[314527006,1708405839818,-500.0,0.00035741,2]
[314527008,1708405839827,-1093.22,0.00035741,2]
[314527010,1708405839837,-1692.44,0.00035741,2]
[314527012,1708405839846,-500.0,0.00035741,2]
[314527014,1708405839855,-1578.14,0.00035741,2]
[314527016,1708405839864,-1099.35,0.00035741,2]
[314527018,1708405839874,-975.65,0.00035741,2]
[314527020,1708405839883,-708.65,0.00035741,2]
[314527022,1708405839893,-6268.26,0.00035741,2]
[314527024,1708405839902,-500.0,0.00035741,2]
[314527026,1708405839911,-500.0,0.00035741,2]
[314527029,1708405839921,-901.49,0.00035741,2]
[314527031,1708405839930,-651.6,0.00035741,2]
[314527033,1708405839939,-1025.4,0.00035741,2]
[314527035,1708405839949,-500.0,0.00035741,2]
[314527037,1708405839959,-3156.54,0.00035741,2]
[314527039,1708405839971,-857.52,0.00035741,2]
[314527041,1708405839980,-1107.07,0.00035741,2]
[314527043,1708405839989,-799.36,0.00035741,2]
[314527045,1708405839998,-833.39,0.00035741,2]
[314527047,1708405840008,-757.3,0.00035741,2]
[314527049,1708405840018,-3560.7,0.00035741,2]
[314527051,1708405840028,-500.0,0.00035741,2]
[314527053,1708405840037,-1705.39,0.00035741,2]
[314527055,1708405840048,-789.45,0.00035741,2]
[314527057,1708405840058,-3144.99,0.00035741,2]
[314527059,1708405840067,-5007.03,0.00035741,2]
[314527061,1708405840077,-1314.19,0.00035741,2]
[314527063,1708405840086,-985.9,0.00035741,2]
[314527065,1708405840095,-1051.08,0.00035741,2]
[314527067,1708405840104,-1499.97,0.00035741,2]
[314527069,1708405840114,-7345.36,0.00035741,2]
[314527071,1708405840123,-1204.36,0.00035741,2]
[314527073,1708405840133,-500.0,0.00035741,2]
[314527075,1708405840142,-500.0,0.00035741,2]
[314527077,1708405840151,-770.93,0.00035741,2]
[314527079,1708405840160,-2816.2,0.00035741,2]
[314527081,1708405840170,-566.48,0.00035741,2]
[314527083,1708405840179,-856.91,0.00035741,2]
[314527085,1708405840189,-529.69,0.00035741,2]
[314527087,1708405840198,-631.33,0.00035741,2]
[314527089,1708405840209,-934.23,0.00035741,2]
[314527091,1708405840218,-500.0,0.00035741,2]
[314527093,1708405840228,-500.0,0.00035741,2]
[314527095,1708405840237,-500.0,0.00035741,2]
[314527097,1708405840247,-506.06,0.00035741,2]
[314527099,1708405840256,-503.72,0.00035741,2]
[314527101,1708405840266,-763.13,0.00035741,2]
[314527103,1708405840275,-500.0,0.00035741,2]
[314527105,1708405840284,-500.0,0.00035741,2]
[314527108,1708405840294,-802.39,0.00035741,2]
[314527110,1708405840303,-1007.84,0.00035741,2]
[314527112,1708405840313,-800.83,0.00035741,2]
[314527114,1708405840322,-712.66,0.00035741,2]
[314527116,1708405840331,-392.6640714,0.00035742,30]
[314527118,1708405840340,-500.0,0.00035742,2]
[314527120,1708405840354,-547.64838413,0.00035742,2]
[314527122,1708405840364,-500.0,0.00035742,2]
[314527124,1708405840373,-500.0,0.00035742,2]
[314527127,1708405840382,-500.0,0.00035742,2]
[314527129,1708405840392,-500.0,0.00035742,2]
[314527131,1708405840402,-500.0,0.00035742,2]
[314527133,1708405840412,-500.0,0.00035742,2]
[314527135,1708405840421,-1224.75,0.00035742,2]
[314527137,1708405840431,-500.0,0.00035742,2]
[314527139,1708405840440,-546.6,0.00035742,2]
[314527141,1708405840450,-500.0,0.00035742,2]
[314527143,1708405840459,-500.0,0.00035742,2]
[314527146,1708405840469,-500.0,0.00035742,2]
[314527148,1708405840479,-500.0,0.00035742,2]
[314527150,1708405840488,-500.0,0.00035742,2]
[314527152,1708405840498,-365.89,0.00035742,2]
[314527154,1708405840507,-500.0,0.00035742,2]
[314527156,1708405840516,-500.0,0.00035742,2]
[314527158,1708405840526,-500.0,0.00035742,2]
[314527160,1708405840535,-500.0,0.00035742,2]
[314527162,1708405840545,-500.0,0.00035742,2]
[314527164,1708405840554,-500.0,0.00035742,2]
[314527166,1708405840564,-500.0,0.00035742,2]
[314527168,1708405840574,-500.0,0.00035742,2]
[314527170,1708405840584,-500.0,0.00035742,2]
[314527172,1708405840593,-500.0,0.00035742,2]
[314527174,1708405840602,-1502.26,0.00035742,2]
[314527176,1708405840612,-500.0,0.00035742,2]
[314527178,1708405840621,-500.0,0.00035742,2]
[314527180,1708405840631,-855.67,0.00035742,2]
[314527182,1708405840640,-500.0,0.00035742,2]
[314527184,1708405840650,-500.0,0.00035742,2]
[314527187,1708405840659,-500.0,0.00035742,2]
[314527189,1708405840668,-500.0,0.00035742,2]
[314527191,1708405840677,-183.12742827,0.00035742,2]
[314527193,1708405840687,-500.0,0.00035742,2]
[314527195,1708405840696,-500.0,0.00035742,2]
[314527197,1708405840705,-500.0,0.00035742,2]
[314527199,1708405840714,-500.0,0.00035742,2]
[314527201,1708405840724,-500.0,0.00035742,2]
[314527203,1708405840733,-500.0,0.00035742,2]
[314527205,1708405840744,-500.0,0.00035742,2]
[314527207,1708405840754,-500.0,0.00035742,2]
[314527209,1708405840763,-500.0,0.00035742,2]
[314527211,1708405840773,-500.0,0.00035742,2]
[314527213,1708405840782,-500.0,0.00035742,2]
[314527215,1708405840792,-627.61037721,0.00035742,2]
[314527217,1708405840801,-500.0,0.00035742,2]
[314527219,1708405840810,-531.0,0.00035742,2]
[314527221,1708405840819,-500.0,0.00035742,2]
[314527223,1708405840829,-500.0,0.00035742,2]
[314527225,1708405840838,-500.0,0.00035742,2]
[314527227,1708405840847,-500.0,0.00035742,2]
[314527229,1708405840856,-500.0,0.00035742,2]
[314527231,1708405840865,-500.0,0.00035742,2]
[314527233,1708405840875,-500.0,0.00035742,2]
[314527235,1708405840884,-500.0,0.00035742,2]
[314527237,1708405840893,-500.0,0.00035742,2]
[314527239,1708405840903,-500.0,0.00035742,2]
[314527241,1708405840911,-500.0,0.00035742,2]
[314527243,1708405840921,-500.0,0.00035742,2]
[314527245,1708405840930,-500.0,0.00035742,2]
[314527246,1708405840938,-500.0,0.00035742,2]
[314527247,1708405840947,-500.0,0.00035742,2]
[314527248,1708405840957,-500.0,0.00035742,2]
[314527249,1708405840968,-500.0,0.00035742,2]
[314527250,1708405840977,-500.0,0.00035742,2]
[314527251,1708405840986,-500.0,0.00035742,2]
[314527252,1708405840995,-500.0,0.00035742,2]
[314527253,1708405841006,-500.0,0.00035742,2]
[314527254,1708405841015,-500.0,0.00035742,2]
[314527255,1708405841024,-500.0,0.00035742,2]
[314527256,1708405841033,-500.0,0.00035742,2]
[314527257,1708405841043,-500.0,0.00035742,2]
[314527258,1708405841052,-500.0,0.00035742,2]
[314527259,1708405841061,-500.0,0.00035742,2]
[314527261,1708405841070,-500.0,0.00035742,2]
[314527263,1708405841080,-500.0,0.00035742,2]
[314527265,1708405841090,-500.0,0.00035742,2]
[314527267,1708405841100,-500.0,0.00035742,2]
[314527269,1708405841109,-500.0,0.00035742,2]
[314527271,1708405841118,-500.0,0.00035742,2]
[314527295,1708405841314,-500.0,0.00035742,2]
[314527298,1708405841344,-392.66407141,0.00035742,30]
[314527300,1708405841354,-500.0,0.00035742,2]
[314527302,1708405841364,-517.91,0.00035742,2]
[314527304,1708405841373,-500.0,0.00035742,2]
[314527306,1708405841382,-500.0,0.00035742,2]
[314527308,1708405841392,-500.0,0.00035742,2]
[314527310,1708405841401,-525.61309516,0.00035742,2]
[314527312,1708405841412,-500.0,0.00035742,2]
[314527314,1708405841421,-160.03638502,0.00035742,2]
[314527316,1708405841431,-500.0,0.00035742,2]
[314527318,1708405841441,-500.0,0.00035742,2]
[314527320,1708405841451,-500.0,0.00035742,2]
[314527322,1708405841460,-500.0,0.00035742,2]
[314527324,1708405841469,-500.0,0.00035742,2]
[314527326,1708405841479,-500.0,0.00035742,2]
[314527328,1708405841488,-236.4714034,0.00035742,2]
[314527330,1708405841498,-500.0,0.00035742,2]
[314527332,1708405841507,-500.0,0.00035742,2]
[314527334,1708405841516,-500.0,0.00035742,2]
[314527336,1708405841527,-500.0,0.00035742,2]
[314527338,1708405841537,-503.07,0.00035742,2]
[314527340,1708405841546,-500.0,0.00035742,2]
[314527342,1708405841556,-469.15894615,0.00035742,2]
[314527344,1708405841565,-500.0,0.00035742,2]
[314527346,1708405841574,-500.0,0.00035742,2]
[314527348,1708405841584,-500.0,0.00035742,2]
[314527350,1708405841593,-857.77,0.00035742,2]
[314527352,1708405841602,-500.0,0.00035742,2]
[314527354,1708405841611,-500.0,0.00035742,2]
[314527356,1708405841620,-610.42,0.00035742,2]
[314527358,1708405841629,-500.0,0.00035742,2]
[314527360,1708405841638,-500.0,0.00035742,2]
[314527362,1708405841647,-500.0,0.00035742,2]
[314527364,1708405841655,-500.0,0.00035742,2]
[314527366,1708405841665,-500.0,0.00035742,2]
[314527368,1708405841673,-500.0,0.00035742,2]
[314527370,1708405841683,-500.0,0.00035742,2]
[314527372,1708405841692,-500.0,0.00035742,2]
[314527374,1708405841701,-584.52,0.00035742,2]
[314527376,1708405841710,-622.47,0.00035742,2]
[314527377,1708405841719,-500.0,0.00035742,2]
[314527379,1708405841728,-500.0,0.00035742,2]
[314527381,1708405841738,-176.29,0.00035742,2]
[314527383,1708405841747,-580.38881273,0.00035742,2]
[314527385,1708405841756,-500.0,0.00035742,2]
[314527387,1708405841765,-500.0,0.00035742,2]
[314527389,1708405841774,-500.0,0.00035742,2]
[314527391,1708405841783,-500.0,0.00035742,2]
[314527393,1708405841792,-500.0,0.00035742,2]
[314527396,1708405841801,-500.0,0.00035742,2]
[314527398,1708405841811,-500.0,0.00035742,2]
[314527399,1708405841821,-500.0,0.00035742,2]
[314527401,1708405841830,-500.0,0.00035742,2]
[314527403,1708405841839,-500.0,0.00035742,2]
[314527405,1708405841848,-500.0,0.00035742,2]
[314527408,1708405841858,-500.0,0.00035742,2]
[314527410,1708405841867,-500.0,0.00035742,2]
[314527412,1708405841876,-500.0,0.00035742,2]
[314527414,1708405841885,-653.77,0.00035742,2]
[314527415,1708405841895,-500.0,0.00035742,2]
[314527418,1708405841905,-651.49,0.00035742,2]
[314527420,1708405841914,-500.0,0.00035742,2]
[314527422,1708405841923,-500.0,0.00035742,2]
[314527424,1708405841932,-513.49968251,0.00035742,2]
[314527426,1708405841941,-513.43999768,0.00035742,2]
[314527428,1708405841950,-568.04,0.00035742,2]
[314527430,1708405841962,-500.0,0.00035742,2]
[314527431,1708405841971,-500.0,0.00035742,2]
[314527433,1708405841981,-500.0,0.00035742,2]
[314527435,1708405841990,-500.0,0.00035742,2]
[314527437,1708405842000,-500.0,0.00035742,2]
[314527439,1708405842010,-500.0,0.00035742,2]
[314527441,1708405842020,-500.0,0.00035742,2]
[314527444,1708405842030,-500.0,0.00035742,2]
[314527446,1708405842042,-502.26,0.00035742,2]
[314527448,1708405842051,-500.0,0.00035742,2]
[314527449,1708405842060,-285.21270513,0.00035742,2]
[314527451,1708405842069,-500.0,0.00035742,2]
[314527453,1708405842078,-500.0,0.00035742,2]
[314527455,1708405842088,-500.0,0.00035742,2]
[314527457,1708405842097,-500.0,0.00035742,2]
[314527459,1708405842107,-500.0,0.00035742,2]
[314527461,1708405842116,-500.0,0.00035742,2]
[314527463,1708405842126,-500.0,0.00035742,2]
[314527466,1708405842136,-592.29,0.00035742,2]
[314527467,1708405842146,-500.0,0.00035742,2]
[314527469,1708405842155,-500.0,0.00035742,2]
[314527471,1708405842164,-500.0,0.00035742,2]
[314527473,1708405842174,-609.58,0.00035742,2]
[314527476,1708405842183,-500.0,0.00035742,2]
[314527477,1708405842192,-500.0,0.00035742,2]
[314527480,1708405842202,-500.0,0.00035742,2]
[314527482,1708405842211,-500.0,0.00035742,2]
[314527483,1708405842220,-332.44447546,0.00035742,2]
[314527485,1708405842229,-500.0,0.00035742,2]
[314527488,1708405842238,-500.0,0.00035742,2]
[314527490,1708405842248,-500.0,0.00035742,2]
[314527492,1708405842257,-500.0,0.00035742,2]
[314527494,1708405842266,-500.0,0.00035742,2]
[314527496,1708405842276,-500.0,0.00035742,2]
[314527498,1708405842285,-1156.3,0.00035742,2]
[314527500,1708405842293,-500.0,0.00035742,2]
[314527502,1708405842303,-500.0,0.00035742,2]
[314527503,1708405842312,-500.0,0.00035742,2]
[314527506,1708405842321,-500.0,0.00035742,2]
[314527507,1708405842331,-500.0,0.00035742,2]
[314527509,1708405842340,-500.0,0.00035742,2]
[314527511,1708405842350,-1376.34,0.00035742,2]
[314527513,1708405842360,-318.57865668,0.00035742,2]
[314527516,1708405842370,-1450.35,0.00035742,2]
[314527518,1708405842381,-710.23,0.00035742,2]
[314527520,1708405842392,-612.87,0.00035742,2]
[314527522,1708405842401,-500.0,0.00035742,2]
[314527524,1708405842410,-500.0,0.00035742,2]
[314527526,1708405842419,-500.0,0.00035742,2]
[314527528,1708405842428,-2122.43,0.00035742,2]
[314527530,1708405842438,-500.0,0.00035742,2]
[314527532,1708405842446,-500.0,0.00035742,2]
[314527534,1708405842455,-500.0,0.00035742,2]
[314527536,1708405842464,-584.05201171,0.00035742,2]
[314527538,1708405842473,-996.96,0.00035742,2]
[314527540,1708405842483,-1666.11,0.00035742,2]
[314527542,1708405842492,-500.0,0.00035742,2]
[314527544,1708405842501,-500.0,0.00035742,2]
[314527546,1708405842511,-500.0,0.00035742,2]
[314527548,1708405842521,-500.0,0.00035742,2]
[314527550,1708405842530,-2200.91,0.00035742,2]
[314527552,1708405842539,-516.84129909,0.00035742,2]
[314527554,1708405842548,-500.0,0.00035742,2]
[314527556,1708405842557,-3505.57,0.00035742,2]
[314527558,1708405842566,-1549.1,0.00035742,2]
[314527560,1708405842575,-500.0,0.00035742,2]
[314527562,1708405842584,-500.0,0.00035742,2]
[314527564,1708405842593,-500.0,0.00035742,2]
[314527566,1708405842602,-1427.74,0.00035742,2]
[314527567,1708405842611,-1000.0,0.00035742,2]
[314527569,1708405842621,-500.0,0.00035742,2]
[314527571,1708405842630,-1106.24,0.00035742,2]
[314527573,1708405842641,-558.37,0.00035742,2]
[314527575,1708405842650,-500.0,0.00035742,2]
[314527578,1708405842660,-8266.61,0.00035742,2]
[314527580,1708405842669,-500.0,0.00035742,2]
[314527581,1708405842678,-500.0,0.00035742,2]
[314527583,1708405842687,-500.0,0.00035742,2]
[314527585,1708405842697,-500.0,0.00035742,2]
[314527587,1708405842707,-500.0,0.00035742,2]
[314527589,1708405842716,-500.0,0.00035742,2]
[314527592,1708405842726,-1222.07,0.00035742,2]
[314527593,1708405842735,-1383.97,0.00035742,2]
[314527595,1708405842744,-500.0,0.00035742,2]
[314527597,1708405842753,-500.0,0.00035742,2]
[314527600,1708405842762,-1188.64,0.00035742,2]
[314527602,1708405842771,-474.17796317,0.00035742,2]
[314527604,1708405842780,-500.0,0.00035742,2]
[314527606,1708405842789,-500.0,0.00035742,2]
[314527608,1708405842798,-1841.65,0.00035742,2]
[314527610,1708405842807,-514.51,0.00035742,2]
[314527612,1708405842816,-500.0,0.00035742,2]
[314527613,1708405842826,-500.0,0.00035742,2]
[314527615,1708405842834,-500.0,0.00035742,2]
[314527619,1708405842844,-500.0,0.00035742,2]
[314527621,1708405842853,-500.0,0.00035742,2]
[314527623,1708405842862,-500.0,0.00035742,2]
[314527625,1708405842871,-500.0,0.00035742,2]
[314527627,1708405842881,-500.0,0.00035742,2]
[314527629,1708405842890,-500.0,0.00035742,2]
[314527631,1708405842899,-500.0,0.00035742,2]
[314527632,1708405842908,-2051.17,0.00035742,2]
[314527634,1708405842917,-500.0,0.00035742,2]
[314527636,1708405842926,-500.0,0.00035742,2]
[314527638,1708405842935,-1668.23,0.00035742,2]
[314527640,1708405842944,-500.0,0.00035742,2]
[314527642,1708405842953,-500.0,0.00035742,2]
[314527645,1708405842966,-500.0,0.00035742,2]
[314527647,1708405842975,-1172.7,0.00035742,2]
[314527649,1708405842984,-500.0,0.00035742,2]
[314527651,1708405842993,-1083.34,0.00035742,2]
[314527653,1708405843002,-100000.0,0.00035744,2]
[314527655,1708405843011,-162.32,0.00035744,2]
[314527657,1708405843020,-300.0,0.00035763,2]
[314527660,1708405843030,-411.81452054,0.00035777,2]
[314527661,1708405843039,-150.0,0.00035783,2]
[314527664,1708405843050,-1500.0,0.0003579,2]
[314527665,1708405843061,-2558.41,0.00035798,2]
[314527668,1708405843070,-157.0212031,0.00035798,2]
[314527669,1708405843079,-350.28649824,0.00035802,2]
[314527671,1708405843088,-200.0,0.00035812,2]
[314527673,1708405843097,-345.0,0.00035812,2]
[314527675,1708405843106,-217.64331962,0.00035818,7]
[314527677,1708405843115,-295.03687102,0.00035823,7]
[314527680,1708405843124,-459.21638551,0.00035834,2]
[314527681,1708405843133,-514.51811362,0.00035839,7]
[314527684,1708405843144,-177.58,0.00035839,2]
[314527686,1708405843153,-1020.38,0.00035842,2]
[314527688,1708405843162,-1222.32,0.00035842,2]
[314527689,1708405843171,-500.0,0.00035842,2]
[314527691,1708405843180,-1934.95,0.00035842,2]
[314527694,1708405843190,-795.84,0.00035842,2]
[314527695,1708405843199,-1767.15,0.00035842,2]
[314527698,1708405843208,-1015.81,0.00035842,2]
[314527700,1708405843218,-500.0,0.00035842,2]
[314527701,1708405843227,-734.77,0.00035842,2]
[314527703,1708405843236,-1939.44,0.00035842,2]